fUSD/lending_fUSD_20250419
["ID","MTS","AMOUNT","RATE_DAILY","PERIOD"]
[358401401,1745068239923,-500.0,0.00054794,120]
[358401402,1745068239933,-499.212856,0.00054794,2]
[358401403,1745068239943,-500.0,0.00054794,120]
[358401404,1745068239953,-150.0,0.00054795,120]
[358401405,1745068239963,-150.0,0.00054795,120]
[358401406,1745068239973,-150.0,0.00054795,120]
[358401407,1745068239982,-150.0,0.00054795,120]
[358401408,1745068239992,-150.60139259,0.00054795,120]
[358401409,1745068240002,-150.0,0.00054795,120]
[358401410,1745068240011,-150.0,0.00054795,120]
[358401411,1745068240020,-150.0,0.00054795,120]
[358401412,1745068240030,-150.0,0.0005485,120]
[358401414,1745068240039,-150.0,0.0005485,120]
[358401416,1745068240049,-150.0,0.0005485,120]
[358401417,1745068240059,-150.0,0.0005485,120]
[358401418,1745068240070,-150.0,0.0005485,120]
[358401419,1745068240079,-150.0,0.0005485,120]
[358401420,1745068240088,-200.0,0.00054905,120]
[358401421,1745068240098,-200.0,0.00054905,120]
[358401422,1745068240108,-200.0,0.00054905,120]
[358401423,1745068240119,-200.0,0.00054905,120]
[358401424,1745068240128,-200.0,0.00054905,120]
[358401425,1745068240138,-200.0,0.00054905,120]
[358401426,1745068240149,-500.0,0.00055122,120]
[358401427,1745068240348,-500.0,0.00055341,120]
[358401428,1745068240362,-500.0,0.00055341,120]
[358401429,1745068240372,-500.0,0.00055341,120]
[358401430,1745068240382,-1197.35,0.00055341,8]
[358401431,1745068240391,-500.0,0.00055341,120]
[358401432,1745068240401,-500.0,0.00055341,120]
[358401433,1745068240411,-500.0,0.00055342,120]
[358401434,1745068240421,-500.0,0.00055342,120]
[358401435,1745068240431,-500.0,0.00055342,120]
[358401436,1745068240442,-613.54,0.00055342,120]
[358401437,1745068240452,-580.84,0.00055342,120]
[358401438,1745068240462,-300.0,0.00055342,120]
[358401439,1745068240476,-500.0,0.00055342,120]
[358401440,1745068240486,-500.0,0.00055342,120]
[358401441,1745068240496,-500.0,0.00055342,120]
[358401442,1745068240506,-500.0,0.00055342,120]
[358401443,1745068240516,-529.7914031,0.00055342,120]
[358401444,1745068240526,-963.54,0.00055342,120]
[358401446,1745068240535,-500.0,0.00055342,120]
[358401448,1745068240546,-500.0,0.00055342,120]
[358401449,1745068240556,-542.55,0.00055342,120]
[358401450,1745068240566,-500.0,0.00055342,120]
[358401451,1745068240576,-500.0,0.00055342,120]
[358401452,1745068240586,-647.82400451,0.00055342,120]
[358401453,1745068240596,-572.33899253,0.00055342,120]
[358401454,1745068240605,-500.0,0.00055342,120]
[358401455,1745068240615,-500.0,0.00055342,120]
[358401456,1745068240625,-500.0,0.00055342,120]
[358401457,1745068240635,-500.0,0.00055342,120]
[358401458,1745068240644,-500.0,0.00055342,120]
[358401459,1745068240654,-500.0,0.00055342,120]
[358401460,1745068240664,-500.0,0.00055342,120]
[358401461,1745068240674,-500.0,0.00055342,120]
[358401462,1745068240683,-500.0,0.00055342,120]
[358401463,1745068240693,-500.0,0.00055342,120]
[358401464,1745068240703,-500.0,0.00055342,120]
[358401465,1745068240713,-788.3,0.00055342,120]
[358401466,1745068240722,-500.0,0.00055342,120]
[358401467,1745068240732,-200.0,0.000557,103]
[358401468,1745068240742,-896.28,0.00055875,2]
[358401469,1745068240751,-582.9621968,0.00055889,120]
[358401470,1745068240761,-500.0,0.00055889,120]
[358401471,1745068240770,-500.0,0.00055889,120]
[358401472,1745068240780,-1197.35,0.00055889,8]
[358401473,1745068240789,-500.0,0.00055889,120]
[358401474,1745068240799,-562.68385186,0.00055889,120]
[358401475,1745068240809,-500.0,0.0005589,120]
[358401476,1745068240819,-500.0,0.0005589,120]
[358401477,1745068240829,-580.84,0.0005589,120]
[358401478,1745068240838,-300.0,0.0005589,120]
[358401479,1745068240847,-500.0,0.0005589,120]
[358401480,1745068240857,-500.0,0.0005589,120]
[358401481,1745068240866,-500.0,0.0005589,120]
[358401482,1745068240876,-963.54,0.0005589,120]
[358401483,1745068240885,-500.0,0.0005589,120]
[358401484,1745068240895,-238.40217978,0.0005589,120]
[358401485,1745068240905,-500.0,0.0005589,120]
[358401486,1745068240914,-500.0,0.0005589,120]
[358401487,1745068240924,-500.0,0.0005589,120]
[358401488,1745068240934,-500.0,0.0005589,120]
[358401489,1745068240943,-595.35918086,0.0005589,120]
[358401490,1745068240954,-559.28016518,0.0005589,120]
[358401491,1745068240965,-500.0,0.0005589,120]
[358401492,1745068240975,-500.0,0.0005589,120]
[358401493,1745068240985,-500.0,0.0005589,120]
[358401494,1745068240995,-500.0,0.0005589,120]
[358401495,1745068241004,-201.59760199,0.0005589,120]
[358401496,1745068241014,-500.0,0.0005589,120]
[358401497,1745068241025,-788.3,0.0005589,120]
[358401498,1745068241035,-580.59294265,0.0005589,120]
[358401499,1745068241045,-13633.9272106,0.00056299,4]
[358401500,1745068241054,-166.66,0.00056409,2]
[358401501,1745068241063,-500.0,0.00056437,120]
[358401502,1745068241072,-500.0,0.00056437,120]
[358401503,1745068241082,-1197.35,0.00056437,8]
[358401504,1745068241091,-500.0,0.00056437,120]
[358401505,1745068241100,-455.17737404,0.00056438,120]
[358401506,1745068241110,-500.0,0.00056438,120]
[358401507,1745068241120,-580.84,0.00056438,120]
[358401508,1745068241130,-300.0,0.00056438,120]
[358401509,1745068241140,-500.0,0.00056438,120]
[358401510,1745068241150,-500.0,0.00056438,120]
[358401511,1745068241159,-500.0,0.00056438,120]
[358401512,1745068241170,-963.54,0.00056438,120]
[358401513,1745068241181,-500.0,0.00056438,120]
[358401514,1745068241190,-500.0,0.00056438,120]
[358401515,1745068241199,-500.0,0.00056438,120]
[358401516,1745068241209,-500.0,0.00056438,120]
[358401517,1745068241219,-500.0,0.00056438,120]
[358401518,1745068241228,-500.0,0.00056438,120]
[358401519,1745068241238,-500.0,0.00056438,120]
[358401520,1745068241248,-500.0,0.00056438,120]
[358401521,1745068241257,-555.80654662,0.00056438,120]
[358401522,1745068241266,-788.3,0.00056438,120]
[358401523,1745068241275,-500.0,0.00056492,120]
[358401524,1745068241286,-6437.14535075,0.00056531,15]
[358401525,1745068241295,-236.22,0.00056686,2]
[358401526,1745068241304,-320.59,0.00056693,30]
[358401527,1745068241313,-200.0,0.00056695,120]
[358401528,1745068241323,-362.13991222,0.00056695,120]
[358401529,1745068241333,-200.0,0.000567,107]
[358401530,1745068241342,-2700.21292463,0.00056797,26]
[358401531,1745068241352,-500.0,0.00056985,120]
[358401532,1745068241362,-500.0,0.00056985,120]
[358401533,1745068241371,-1197.35,0.00056985,8]
[358401534,1745068241381,-500.0,0.00056985,120]
[358401535,1745068241390,-500.0,0.00056986,120]
[358401536,1745068241399,-580.84,0.00056986,120]
[358401537,1745068241409,-401.0177012,0.00056986,120]
[358401538,1745068241419,-500.0,0.00056986,120]
[358401539,1745068241428,-500.0,0.00056986,120]
[358401540,1745068241437,-500.0,0.00056986,120]
[358401541,1745068241447,-963.54,0.00056986,120]
[358401542,1745068241456,-576.15,0.00056986,120]
[358401543,1745068241467,-500.0,0.00056986,120]
[358401544,1745068241477,-500.0,0.00056986,120]
[358401545,1745068241487,-500.0,0.00056986,120]
[358401546,1745068241496,-500.0,0.00056986,120]
[358401547,1745068241506,-500.0,0.00056986,120]
[358401548,1745068241516,-788.3,0.00056986,120]
[358401549,1745068241525,-1295.36,0.00057128,2]
[358401550,1745068241536,-500.0,0.00057427,120]
[358401551,1745068241546,-500.0,0.00057533,120]
[358401552,1745068241555,-500.0,0.00057533,120]
[358401553,1745068241565,-1197.35,0.00057533,8]
[358401554,1745068241575,-500.0,0.00057533,120]
[358401555,1745068241585,-500.0,0.00057534,120]
[358401556,1745068241595,-580.84,0.00057534,120]
[358401557,1745068241605,-500.0,0.00057534,120]
[358401558,1745068241614,-234.46191959,0.00057534,120]
[358401559,1745068241625,-500.0,0.00057534,120]
[358401560,1745068241635,-963.54,0.00057534,120]
[358401561,1745068241645,-500.0,0.00057534,120]
[358401562,1745068241654,-500.0,0.00057534,120]
[358401563,1745068241664,-500.0,0.00057534,120]
[358401564,1745068241674,-500.0,0.00057534,120]
[358401565,1745068241684,-551.13523345,0.00057534,120]
[358401566,1745068241694,-788.3,0.00057534,120]
[358401567,1745068241705,-200.0,0.000577,111]
[358401568,1745068241716,-4704.31158503,0.00057792,30]
[358401569,1745068241727,-500.0,0.00058081,120]
[358401570,1745068241737,-500.0,0.00058081,120]
[358401571,1745068241747,-1197.35,0.00058081,8]
[358401572,1745068241757,-500.0,0.00058081,120]
[358401573,1745068241767,-500.0,0.00058082,120]
[358401574,1745068241776,-580.84,0.00058082,120]
[358401575,1745068241785,-500.0,0.00058082,120]
[358401576,1745068241794,-500.0,0.00058082,120]
[358401577,1745068241803,-963.54,0.00058082,120]
[358401578,1745068241813,-500.0,0.00058082,120]
[358401579,1745068241822,-500.0,0.00058082,120]
[358401580,1745068241832,-500.0,0.00058082,120]
[358401581,1745068241842,-500.0,0.00058082,120]
[358401582,1745068241852,-788.3,0.00058082,120]
[358401583,1745068241861,-13633.9272106,0.00058186,4]
[358401584,1745068241871,-2206.0,0.00058196,25]
[358401585,1745068241880,-166.66,0.00058271,2]
[358401586,1745068241890,-702.43530453,0.000584,30]
[358401587,1745068241900,-500.0,0.00058629,120]
[358401588,1745068241909,-500.0,0.00058629,120]
[358401589,1745068241919,-1197.35,0.00058629,8]
[358401590,1745068241928,-500.0,0.00058629,120]
[358401591,1745068241938,-500.0,0.0005863,120]
[358401592,1745068241947,-580.84,0.0005863,120]
[358401593,1745068241957,-500.0,0.0005863,120]
[358401594,1745068241967,-963.54,0.0005863,120]
[358401595,1745068241976,-500.0,0.0005863,120]
[358401596,1745068241985,-500.0,0.0005863,120]
[358401597,1745068241995,-378.99211761,0.0005863,120]
[358401598,1745068242004,-500.0,0.0005863,120]
[358401599,1745068242013,-788.3,0.0005863,120]
[358401600,1745068242023,-200.0,0.000587,115]
[358401601,1745068242032,-1540.50812661,0.0005888,120]
[358401602,1745068242042,-21223.828536,0.0005888,4]
[358401603,1745068242051,-13633.9272106,0.00058889,4]
[358401604,1745068242060,-21223.828536,0.00058889,4]
[358401605,1745068242070,-500.0,0.00058889,120]
[358401606,1745068242079,-500.0,0.00058889,120]
[358401607,1745068242088,-500.0,0.00058889,120]
[358401608,1745068242098,-500.0,0.00058889,120]
[358401609,1745068242108,-500.0,0.00058889,120]
[358401610,1745068242117,-500.0,0.00058889,120]
[358401611,1745068242127,-533.86257529,0.00058889,120]
[358401612,1745068242137,-500.0,0.00058889,120]
[358401613,1745068242146,-500.0,0.00058889,120]
[358401614,1745068242156,-500.0,0.00058889,120]
[358401615,1745068242165,-500.0,0.00058889,120]
[358401616,1745068242174,-500.0,0.00058889,120]
[358401617,1745068242184,-500.0,0.00058889,120]
[358401618,1745068242193,-500.0,0.00058889,120]
[358401619,1745068242204,-500.0,0.00058889,120]
[358401620,1745068242214,-500.0,0.00058889,120]
[358401621,1745068242224,-500.0,0.00058889,120]
[358401622,1745068242233,-492.0,0.00058889,120]
[358401623,1745068242243,-500.0,0.00058889,120]
[358401624,1745068242252,-500.0,0.00058889,120]
[358401625,1745068242262,-500.0,0.00058889,120]
[358401626,1745068242272,-1562.22,0.00058889,120]
[358401627,1745068242282,-154.47,0.00058889,30]
[358401628,1745068242293,-500.0,0.00058889,120]
[358401629,1745068242302,-500.0,0.00058889,120]
[358401630,1745068242312,-500.0,0.00058889,120]
[358401631,1745068242321,-500.0,0.00058889,120]
[358401632,1745068242330,-500.0,0.00058889,120]
[358401633,1745068242340,-1013.07,0.00058889,120]
[358401634,1745068242349,-547.28828041,0.00058889,120]
[358401635,1745068242359,-500.0,0.00058889,120]
[358401636,1745068242369,-1172.86,0.00058889,120]
[358401637,1745068242379,-500.0,0.00058889,120]
[358401638,1745068242389,-596.66070079,0.00058889,120]
[358401639,1745068242399,-500.0,0.00058889,120]
[358401640,1745068242409,-510.15262768,0.00058889,120]
[358401641,1745068242419,-545.40285848,0.00058889,120]
[358401642,1745068242429,-998.58,0.00058889,120]
[358401643,1745068242438,-500.0,0.00058889,120]
[358401644,1745068242448,-500.0,0.00058889,120]
[358401645,1745068242457,-500.0,0.00058889,120]
[358401646,1745068242470,-500.0,0.00058889,120]
[358401647,1745068242480,-500.0,0.00058889,120]
[358401648,1745068242490,-561.0,0.00058889,120]
[358401649,1745068242500,-516.242573,0.00058889,120]
[358401650,1745068242511,-500.0,0.00058889,120]
[358401651,1745068242520,-500.0,0.00058889,120]
[358401652,1745068242530,-500.0,0.00058889,120]
[358401653,1745068242539,-500.0,0.00058889,120]
[358401654,1745068242551,-500.0,0.00058889,120]
[358401655,1745068242562,-500.0,0.00058889,120]
[358401656,1745068242571,-500.0,0.00058889,120]
[358401657,1745068242581,-524.73835576,0.00058889,120]
[358401658,1745068242591,-550.68084865,0.00058889,120]
[358401659,1745068242600,-537.92741046,0.00058889,120]
[358401660,1745068242609,-500.0,0.00058889,120]
[358401661,1745068242619,-510.8778798,0.00058889,120]
[358401662,1745068242628,-500.0,0.00058889,120]
[358401663,1745068242638,-519.39605492,0.00058889,120]
[358401664,1745068242648,-500.0,0.00058889,120]
[358401665,1745068242657,-502.45853078,0.00058889,120]
[358401666,1745068242667,-109071.417685,0.0005889,4]
[358401667,1745068242677,-95507.2284121,0.0005889,4]
[358401668,1745068242687,-566.61017594,0.00058899,120]
[358401669,1745068242697,-500.0,0.00058899,120]
[358401670,1745068242706,-311.8317492,0.00058899,2]
[358401671,1745068242715,-500.0,0.00058899,2]
[358401672,1745068242725,-500.0,0.00058899,120]
[358401674,1745068242734,-1028.44,0.00058899,120]
[358401676,1745068242744,-507.85,0.00058899,120]
[358401677,1745068242753,-1086.4,0.00058899,120]
[358401679,1745068242763,-500.0,0.00058899,120]
[358401681,1745068242772,-500.0,0.00058899,120]
[358401682,1745068242781,-500.0,0.00058899,120]
[358401683,1745068242791,-554.27855261,0.00058899,120]
[358401684,1745068242801,-570.4816341,0.00058899,120]
[358401685,1745068242810,-500.0,0.00058899,120]
[358401686,1745068242820,-500.0,0.00058899,120]
[358401688,1745068242830,-96.43178584,0.00058899,120]
[358401778,1745068244705,-9206.92485334,0.00051631,15]
[358401779,1745068244714,-500.0,0.00054794,120]
[358401780,1745068244724,-500.0,0.00054794,120]
[358401781,1745068244734,-500.0,0.00054794,120]
[358401782,1745068244743,-500.0,0.00054794,118]
[358401783,1745068244753,-500.0,0.00054794,120]
[358401784,1745068244763,-500.0,0.00055342,120]
[358401785,1745068244772,-500.0,0.00055342,120]
[358401786,1745068244782,-500.0,0.00055342,118]
[358401787,1745068244791,-500.0,0.00055342,120]
[358401788,1745068244801,-500.0,0.0005589,120]
[358401789,1745068244810,-500.0,0.0005589,120]
[358401790,1745068244820,-500.0,0.0005589,118]
[358401791,1745068244830,-500.0,0.0005589,120]
[358401792,1745068244839,-500.0,0.00056438,120]
[358401793,1745068244848,-500.0,0.00056438,120]
[358401794,1745068244859,-500.0,0.00056438,118]
[358401795,1745068244868,-500.0,0.00056438,120]
[358401796,1745068244878,-500.0,0.00056986,120]
[358401797,1745068244888,-500.0,0.00056986,120]
[358401798,1745068244898,-500.0,0.00057534,120]
[358401799,1745068244908,-500.0,0.00057534,120]
[358401800,1745068244918,-500.0,0.00058082,120]
[358401801,1745068244928,-500.0,0.00058082,120]
[358401802,1745068244937,-633.85675222,0.0005863,120]
[358401803,1745068244947,-500.0,0.0005863,120]
[358401804,1745068244957,-500.0,0.00058889,120]
[358401805,1745068244966,-403.56821416,0.00058899,120]
[358401806,1745068244976,-500.0,0.00058899,120]
[358401807,1745068244986,-556.31053676,0.00058899,120]
[358401808,1745068244996,-500.0,0.00058899,120]
[358401809,1745068245006,-500.0,0.00058899,120]
[358401810,1745068245015,-500.0,0.00058899,120]
[358401811,1745068245026,-566.53822054,0.00058899,120]
[358401812,1745068245036,-500.0,0.00058899,120]
[358401813,1745068245046,-500.0,0.00058899,120]
[358401814,1745068245055,-947.63,0.00058899,120]
[358401815,1745068245065,-571.0644187,0.00058899,120]
[358401816,1745068245074,-509.1604064,0.00058899,120]
[358401817,1745068245083,-500.0,0.00058899,120]
[358401818,1745068245093,-500.0,0.00058899,120]
[358401819,1745068245104,-500.70641899,0.00058899,120]
[358401820,1745068245113,-500.0,0.00058899,120]
[358401821,1745068245124,-500.0,0.00058899,30]
[358401822,1745068245133,-500.0,0.00058899,120]
[358401823,1745068245144,-500.0,0.00058899,120]
[358401824,1745068245157,-500.0,0.00058899,120]
[358401825,1745068245167,-500.0,0.00058899,120]
[358401826,1745068245176,-549.66,0.00058899,120]
[358401827,1745068245186,-517.3283485,0.00058899,120]
[358401828,1745068245195,-500.0,0.00058899,120]
[358401829,1745068245205,-500.0,0.00058899,120]
[358401830,1745068245214,-989.54,0.00058899,120]
[358401831,1745068245224,-500.0,0.00058899,120]
[358401832,1745068245233,-500.0,0.00058899,120]
[358401833,1745068245243,-500.0,0.00058899,120]
[358401834,1745068245252,-500.0,0.00058899,120]
[358401835,1745068245261,-500.0,0.00058899,120]
[358401836,1745068245271,-500.86,0.00058899,120]
[358401837,1745068245280,-539.27803756,0.00058899,120]
[358401838,1745068245290,-507.79309276,0.00058899,120]
[358401839,1745068245300,-500.0,0.00058899,120]
[358401840,1745068245310,-500.0,0.00058899,120]
[358401841,1745068245319,-500.0,0.00058899,120]
[358401842,1745068245328,-590.84200553,0.00058899,120]
[358401843,1745068245337,-500.0,0.00058899,120]
[358401844,1745068245348,-545.67485354,0.00058899,120]
[358401845,1745068245357,-500.0,0.00058899,120]
[358401846,1745068245367,-500.0,0.00058899,120]
[358401847,1745068245376,-510.84547233,0.00058899,120]
[358401848,1745068245385,-500.0,0.00058899,120]
[358401849,1745068245395,-551.64346415,0.00058899,120]
[358401850,1745068245404,-643.01378356,0.00058899,120]
[358401851,1745068245414,-565.72424708,0.00058899,120]
[358401852,1745068245423,-500.0,0.00058899,120]
[358401853,1745068245433,-500.0,0.00058899,120]
[358401854,1745068245443,-500.0,0.00058899,120]
[358401855,1745068245452,-500.0,0.00058899,120]
[358401856,1745068245462,-500.0,0.00058899,120]
[358401857,1745068245475,-500.0,0.00058899,120]
[358401858,1745068245485,-500.0,0.00058899,120]
[358401859,1745068245494,-1000.0,0.00058899,120]
[358401860,1745068245503,-518.19834561,0.00058899,120]
[358401861,1745068245514,-500.0,0.00058899,120]
[358401862,1745068245524,-500.0,0.00058899,7]
[358401863,1745068245533,-500.0,0.00058899,120]
[358401864,1745068245544,-199637.82951316,0.000589,90]
[358401865,1745068245554,-300.0,0.000589,21]
[358401866,1745068245564,-1000.0,0.00058904,120]
[358401867,1745068245574,-10611.914268,0.0005892,4]
[358401868,1745068245583,-236.22,0.0005895,2]
[358401869,1745068245594,-2700.21292463,0.00059003,28]
[358401870,1745068245603,-231.16,0.0005915,120]
[358401871,1745068245613,-500.0,0.00059177,120]
[358401872,1745068245622,-469.7,0.00059177,120]
[358401873,1745068245632,-1197.35,0.00059177,8]
[358401874,1745068245641,-500.0,0.00059177,120]
[358401875,1745068245651,-500.0,0.00059178,120]
[358401876,1745068245661,-580.84,0.00059178,120]
[358401877,1745068245671,-500.0,0.00059178,120]
[358401878,1745068245680,-963.54,0.00059178,120]
[358401879,1745068245690,-500.0,0.00059178,120]
[358401880,1745068245700,-500.0,0.00059178,120]
[358401881,1745068245710,-500.0,0.00059178,120]
[358401882,1745068245719,-788.3,0.00059178,120]
[358401883,1745068245729,-500.0,0.00059178,120]
[358401884,1745068245739,-10611.914268,0.00059417,5]
[358401885,1745068245748,-13633.9272106,0.00059427,5]
[358401886,1745068245758,-431.42458194,0.00059427,7]
[358401887,1745068245767,-10611.914268,0.00059427,5]
[358401888,1745068245776,-508.91294352,0.00059437,120]
[358401889,1745068245786,-500.0,0.00059437,120]
[358401890,1745068245796,-500.0,0.00059437,120]
[358401891,1745068245806,-500.0,0.00059437,120]
[358401892,1745068245815,-500.0,0.00059437,120]
[358401893,1745068245825,-500.0,0.00059437,120]
[358401894,1745068245835,-500.0,0.00059437,120]
[358401895,1745068245844,-500.0,0.00059437,120]
[358401896,1745068245854,-500.0,0.00059437,120]
[358401897,1745068245863,-500.0,0.00059437,120]
[358401898,1745068245873,-500.0,0.00059437,120]
[358401899,1745068245882,-500.0,0.00059437,120]
[358401900,1745068245892,-500.0,0.00059437,120]
[358401901,1745068245901,-500.0,0.00059437,120]
[358401902,1745068245910,-500.0,0.00059437,120]
[358401903,1745068245920,-500.0,0.00059437,120]
[358401904,1745068245929,-500.0,0.00059437,120]
[358401905,1745068245939,-1562.22,0.00059437,120]
[358401906,1745068245948,-500.0,0.00059437,120]
[358401907,1745068245957,-500.0,0.00059437,120]
[358401908,1745068245967,-500.0,0.00059437,120]
[358401909,1745068245977,-500.0,0.00059437,120]
[358401910,1745068245986,-500.0,0.00059437,120]
[358401911,1745068245996,-1013.07,0.00059437,120]
[358401912,1745068246006,-516.89681844,0.00059437,120]
[358401913,1745068246016,-1172.86,0.00059437,120]
[358401914,1745068246027,-500.0,0.00059437,120]
[358401915,1745068246036,-515.3742717,0.00059437,120]
[358401916,1745068246045,-998.58,0.00059437,120]
[358401917,1745068246054,-513.65364344,0.00059437,120]
[358401918,1745068246064,-537.34179468,0.00059437,120]
[358401919,1745068246074,-516.89533217,0.00059437,120]
[358401920,1745068246083,-500.0,0.00059437,120]
[358401921,1745068246092,-561.0,0.00059437,120]
[358401922,1745068246102,-500.0,0.00059437,120]
[358401923,1745068246111,-500.0,0.00059437,120]
[358401924,1745068246120,-500.0,0.00059437,120]
[358401925,1745068246130,-500.0,0.00059437,120]
[358401926,1745068246139,-505.68097497,0.00059437,120]
[358401927,1745068246149,-523.75585208,0.00059437,120]
[358401928,1745068246159,-500.0,0.00059437,120]
[358401929,1745068246167,-500.0,0.00059437,120]
[358401930,1745068246177,-572.70487794,0.00059437,120]
[358401931,1745068246186,-541.8591263,0.00059437,120]
[358401932,1745068246196,-13633.9272106,0.00059437,5]
[358401933,1745068246205,-10611.914268,0.00059437,5]
[358401934,1745068246214,-500.0,0.00059447,2]
[358401935,1745068246223,-500.0,0.00059447,120]
[358401936,1745068246233,-1028.44,0.00059447,120]
[358401937,1745068246242,-507.85,0.00059447,120]
[358401938,1745068246252,-1086.4,0.00059447,120]
[358401939,1745068246261,-500.0,0.00059447,120]
[358401940,1745068246270,-500.0,0.00059447,120]
[358401941,1745068246279,-500.0,0.00059447,120]
[358401942,1745068246288,-504.17035468,0.00059447,120]
[358401943,1745068246297,-500.0,0.00059447,120]
[358401944,1745068246306,-500.0,0.00059447,120]
[358401945,1745068246319,-500.0,0.00059447,120]
[358401947,1745068246328,-500.0,0.00059447,120]
[358401949,1745068246338,-500.0,0.00059447,120]
[358401951,1745068246347,-500.0,0.00059447,120]
[358401953,1745068246357,-500.0,0.00059447,120]
[358401955,1745068246366,-500.0,0.00059447,120]
[358401957,1745068246376,-947.63,0.00059447,120]
[358401959,1745068246385,-500.0,0.00059447,120]
[358401961,1745068246395,-180.97991125,0.00059447,120]
[358401963,1745068246404,-500.0,0.00059447,120]
[358401965,1745068246413,-500.0,0.00059447,30]
[358401966,1745068246423,-500.0,0.00059447,120]
[358401968,1745068246433,-500.0,0.00059447,120]
[358401970,1745068246443,-500.0,0.00059447,120]
[358401971,1745068246452,-500.0,0.00059447,120]
[358401973,1745068246462,-549.66,0.00059447,120]
[358401975,1745068246471,-500.0,0.00059447,120]
[358401977,1745068246483,-500.0,0.00059447,120]
[358401979,1745068246493,-989.54,0.00059447,120]
[358401981,1745068246502,-500.0,0.00059447,120]
[358401983,1745068246511,-500.0,0.00059447,120]
[358401985,1745068246520,-500.0,0.00059447,120]
[358401987,1745068246531,-500.0,0.00059447,120]
[358401989,1745068246541,-500.0,0.00059447,120]
[358401991,1745068246551,-500.86,0.00059447,120]
[358401993,1745068246563,-500.0,0.00059447,120]
[358401995,1745068246575,-500.0,0.00059447,120]
[358401997,1745068246584,-500.0,0.00059447,120]
[358401999,1745068246593,-500.0,0.00059447,120]
[358402001,1745068246603,-500.0,0.00059447,120]
[358402003,1745068246613,-500.0,0.00059447,120]
[358402005,1745068246622,-516.12298599,0.00059447,120]
[358402007,1745068246631,-500.0,0.00059447,120]
[358402009,1745068246640,-500.0,0.00059447,120]
[358402011,1745068246650,-500.0,0.00059447,120]
[358402013,1745068246660,-500.0,0.00059447,120]
[358402015,1745068246669,-500.0,0.00059447,120]
[358402016,1745068246679,-500.0,0.00059447,120]
[358402017,1745068246689,-1061.97602277,0.00059447,120]
[358402018,1745068246698,-500.0,0.00059447,120]
[358402019,1745068246708,-500.0,0.00059447,7]
[358402020,1745068246717,-500.0,0.00059447,120]
[358402021,1745068246727,-200.0,0.000597,119]
[358402022,1745068246738,-500.0,0.00059715,120]
[358402023,1745068246747,-500.0,0.00059725,120]
[358402024,1745068246757,-1197.35,0.00059725,8]
[358402025,1745068246766,-500.0,0.00059725,120]
[358402026,1745068246775,-500.0,0.00059726,120]
[358402027,1745068246785,-580.84,0.00059726,120]
[358402028,1745068246794,-500.0,0.00059726,120]
[358402029,1745068246804,-963.54,0.00059726,120]
[358402030,1745068246813,-460.91,0.00059726,120]
[358402031,1745068246823,-500.0,0.00059726,120]
[358402032,1745068246832,-788.3,0.00059726,120]